fUSD/lending_fUSD_20250720
["ID","MTS","AMOUNT","RATE_DAILY","PERIOD"]
[373568042,1753047040850,-151.0,0.00019921,2]
[373568044,1753047040860,-151.0,0.00019921,2]
[373568046,1753047040870,-150.0,0.00019937,4]
[373568048,1753047040879,-150.0,0.00019937,4]
[373568050,1753047040889,-150.0,0.00019937,4]
[373568052,1753047040898,-150.0,0.00019937,4]
[373568054,1753047040907,-150.0,0.00019937,4]
[373568056,1753047040917,-545.12,0.00019945,2]
[373568058,1753047040926,-480.0,0.00019945,2]
[373568069,1753047041021,-480.0,0.00019945,2]
[373568071,1753047041031,-647.0,0.00019945,2]
[373568073,1753047041040,-4977.24,0.00019945,2]
[373568075,1753047041049,-480.0,0.00019945,2]
[373568077,1753047041059,-2462.49,0.00019945,2]
[373568079,1753047041067,-1003.5,0.00019945,2]
[373568081,1753047041077,-480.0,0.00019945,2]
[373568083,1753047041086,-750.66,0.00019945,2]
[373568085,1753047041096,-653.5522824,0.0001996,2]
[373568087,1753047041105,-500.0,0.00019972,2]
[373568089,1753047041115,-303.70394157,0.00019973,2]
[373568091,1753047041124,-500.0,0.00019973,2]
[373568093,1753047041133,-500.0,0.00019973,2]
[373568095,1753047041143,-500.93529845,0.00019973,2]
[373568097,1753047041153,-500.0,0.00019973,2]
[373568099,1753047041167,-500.0,0.00019973,2]
[373568101,1753047041176,-500.0,0.00019973,2]
[373568103,1753047041185,-500.0,0.00019973,2]
[373568105,1753047041195,-500.0,0.00019973,2]
[373568107,1753047041205,-5000.0,0.00019985,2]
[373568109,1753047041214,-11439.73417413,0.00019985,2]
[373568118,1753047041289,-540.28871526,0.00019985,2]
[373568129,1753047041475,-1752.72875,0.00019985,2]
[373568135,1753047041637,-10376.60314857,0.00019985,2]
[373568137,1753047041648,-633.56447214,0.00019985,2]
[373568139,1753047041660,-7846.0512399,0.00019985,2]
[373568141,1753047041669,-151.0,0.00019985,2]
[373568143,1753047041677,-151.0,0.00019985,2]
[373568145,1753047041687,-10533.9863166,0.00019996,2]
[373568147,1753047041697,-12597.4643941,0.00019996,2]
[373568149,1753047041706,-18351.5292988,0.00019996,2]
[373568151,1753047041714,-284.53422128,0.00019996,2]
[373568153,1753047041725,-589.7,0.00019996,2]
[373568352,1753047043274,-26.46479636,0.00019178,2]
[373568359,1753047043310,-434.36066057,0.00019178,2]
[373568362,1753047043319,-480.0,0.00019178,2]
[373568364,1753047043328,-480.0,0.00019178,2]
[373568366,1753047043338,-480.0,0.00019178,2]
[373568368,1753047043347,-1666.6666,0.00019178,2]
[373568370,1753047043356,-1666.6666,0.00019178,2]
[373568372,1753047043365,-152.67382352,0.00019178,2]
[373568374,1753047043376,-1513.99277648,0.00019178,2]
[373568376,1753047043385,-480.0,0.00019287,2]
[373568378,1753047043394,-480.0,0.00019287,2]
[373568380,1753047043403,-480.0,0.00019287,2]
[373568382,1753047043412,-480.0,0.00019397,2]
[373568384,1753047043421,-480.0,0.00019889,2]
[373568386,1753047043430,-160.219505,0.000199,2]
[373568388,1753047043439,-1549.16156022,0.00019996,2]
[373568390,1753047043451,-150.0,0.00019999,4]
[373568392,1753047043460,-24.55038198,0.00019999,2]
[373568395,1753047043480,-480.0,0.00019397,2]
[373568397,1753047043490,-975.44961802,0.00019999,2]
[373568400,1753047043500,-510.7103819,0.00019999,2]
[373568402,1753047043516,-15.19644541,0.00019999,2]
[373568404,1753047043526,-1250.19,0.00019999,2]
[373568406,1753047043536,-8431.69,0.00019999,2]
[373568408,1753047043546,-480.0,0.00019999,2]
[373568410,1753047043555,-500.0,0.00019999,2]
[373568412,1753047043564,-480.0,0.00019999,2]
[373568414,1753047043574,-480.0,0.00019999,2]
[373568416,1753047043583,-1967.28,0.00019999,2]
[373568418,1753047043593,-480.0,0.00019999,2]
[373568420,1753047043602,-184.09753915,0.00019999,2]
[373568422,1753047043611,-500.0,0.00019999,2]
[373568424,1753047043620,-347.60694375,0.00019999,2]
[373568426,1753047043629,-295.53060293,0.00019999,2]
[373568428,1753047043638,-71372.41627747,0.0002,2]
[373568430,1753047043648,-36388.4402192,0.0002,2]
[373568432,1753047043659,-42994.98599237,0.0002,2]
[373568435,1753047043670,-436.06559965,0.0002,2]
[373568437,1753047043686,-1285.3079635,0.0002,2]
[373568550,1753047046263,-480.0,0.00019178,2]
[373568551,1753047046273,-480.0,0.00019178,2]
[373568552,1753047046282,-480.0,0.00019178,2]
[373568553,1753047046292,-480.0,0.00019178,2]
[373568554,1753047046302,-1948.15,0.00019178,2]
[373568555,1753047046312,-1921.85,0.00019178,2]
[373568556,1753047046357,-267.33820596,0.00019178,2]
[373568557,1753047046369,-780.99179404,0.00019178,2]
[373568558,1753047046378,-125.73792292,0.00019249,2]
[373568559,1753047046413,-600.86929527,0.00019249,2]
[373568560,1753047046427,-135.39278181,0.00019249,2]
[373568561,1753047046436,-454.85721819,0.00019287,2]
[373568562,1753047046449,-25.14278181,0.00019287,2]
[373568563,1753047046459,-480.0,0.00019287,2]
[373568564,1753047046468,-480.0,0.00019287,2]
[373568565,1753047046478,-480.0,0.00019287,2]
[373568566,1753047046488,-1093.22567604,0.00019287,2]
[373568567,1753047046499,-854.92432396,0.00019287,2]
[373568568,1753047046509,-2970.18,0.00019287,2]
[373568569,1753047046519,-382.76681284,0.00019397,2]
[373568570,1753047046529,-460.0,0.00019397,2]
[373568571,1753047046538,-480.0,0.00019397,2]
[373568572,1753047046547,-480.0,0.00019397,2]
[373568573,1753047046557,-1948.15,0.00019397,2]
[373568574,1753047046567,-480.0,0.00019397,2]
[373568575,1753047046576,-480.0,0.00019506,2]
[373568576,1753047046585,-480.0,0.00019506,2]
[373568577,1753047046595,-480.0,0.00019506,2]
[373568578,1753047046604,-369.35398865,0.00019506,2]
[373568579,1753047046613,-480.0,0.00019616,2]
[373568580,1753047046623,-480.0,0.00019616,2]
[373568582,1753047046632,-480.0,0.00019616,2]
[373568584,1753047046642,-480.0,0.00019726,2]
[373568585,1753047046651,-480.0,0.00019726,2]
[373568586,1753047046660,-480.0,0.00019726,2]
[373568587,1753047046670,-480.0,0.00019835,2]
[373568588,1753047046680,-480.0,0.00019835,2]
[373568590,1753047046689,-480.0,0.00019835,2]
[373568592,1753047046700,-480.0,0.00019889,2]
[373568594,1753047046710,-1227.19,0.00019889,2]
[373568596,1753047046719,-480.0,0.00019889,2]
[373568598,1753047046728,-480.0,0.00019945,2]
[373568600,1753047046738,-510.67,0.00019945,2]
[373568602,1753047046750,-480.0,0.00019945,2]
[373568604,1753047046760,-480.0,0.00019999,2]
[373568606,1753047046769,-1227.19,0.00019999,2]
[373568608,1753047046779,-420.73628965,0.00019999,2]
[373568610,1753047046788,-7583.1364622,0.0002,2]
[373568616,1753047046839,-2970.18,0.00019397,2]
[373568618,1753047046849,-1948.15,0.00019506,2]
[373568621,1753047046859,-3713.92813572,0.0002,2]
[373568623,1753047046868,-500.0,0.0002,2]
[373568625,1753047046878,-4512.71171863,0.0002,2]
[373568627,1753047046889,-875.07419975,0.0002,2]
[373568629,1753047046901,-17443.73469553,0.0002,2]
[373568631,1753047046910,-256.38641447,0.0002,2]
[373568634,1753047046932,-480.0,0.00019506,2]
[373568637,1753047046953,-20.0,0.000199,2]
[373568860,1753047266065,156.3,0.000229,31]
[373568861,1753047266221,156.3,0.000229,31]
[373568862,1753047266296,156.3,0.000229,31]
[373568863,1753047266633,156.3,0.000229,31]
[373568864,1753047266712,156.3,0.000229,31]
[373568865,1753047266861,156.3,0.000229,31]
[373568866,1753047266948,156.3,0.000229,31]
[373568869,1753047360684,222.83,0.00013699,2]
[373568870,1753047443832,317.7,0.00024872,120]
[373568871,1753047607707,250.0,0.00023,30]
[373568872,1753047701133,-1231.10081841,0.000165,2]
[373568874,1753047842738,-507.0,0.00017397,2]
[373568875,1753047842763,-174.60565786,0.000174,2]
[373568876,1753047842790,-385.0,0.000175,2]
[373568877,1753047842815,-252.31,0.00017934,2]
[373568878,1753047842839,-828.24,0.00017962,2]
[373568879,1753047842865,-200.0,0.00018,2]
[373568880,1753047842891,-250.0,0.00018012,2]
[373568881,1753047842919,-317.7,0.00018089,2]
[373568882,1753047842944,-250.0,0.0001815,2]
[373568883,1753047842971,-174.60565785,0.0001816,2]
[373568884,1753047842996,-1000.0,0.00018186,2]
[373568885,1753047843021,-165.45,0.0001826,2]
[373568886,1753047843046,-3173.47,0.0001829,2]
[373568887,1753047884143,495.08868429,0.00018093,2]
[373568889,1753048034129,-300.0,0.00017431,2]
[373568890,1753048034151,-300.0,0.00017432,2]
[373568891,1753048034173,-150.0,0.00017433,2]
[373568892,1753048034194,-150.0,0.00017433,2]
[373568893,1753048034214,-150.22977386,0.00017433,2]
[373568894,1753048034235,-150.0,0.00017433,2]
[373568895,1753048034255,-150.0,0.00017433,2]
[373568896,1753048034275,-150.0,0.00017433,2]
[373568897,1753048034296,-150.0,0.00017433,2]
[373568898,1753048034316,-66.52961595,0.00017433,2]
[373568899,1753048052426,-83.47038405,0.00017433,2]
[373568900,1753048052450,-150.0,0.00017433,2]
[373568901,1753048052471,-150.0,0.00017433,2]
[373568902,1753048052491,-150.0,0.00017433,2]
[373568903,1753048052513,-150.0,0.00017433,2]
[373568904,1753048052535,-150.0,0.00017609,2]
[373568905,1753048052558,-150.0,0.00017704,2]
[373568906,1753048052582,-150.0,0.0001771,2]
[373568907,1753048052607,-150.0,0.00017785,2]
[373568908,1753048052627,-150.0,0.0001782,2]
[373568909,1753048052647,-150.0,0.0001782,2]
[373568910,1753048052668,-150.0,0.00017917,2]
[373568911,1753048052688,-150.0,0.00017961,2]
[373568912,1753048052708,-150.0,0.00017986,2]
[373568913,1753048052728,-150.0,0.00018079,2]
[373568914,1753048052748,-170.91131571,0.00018093,2]
[373568915,1753048052769,-150.0,0.00018113,2]
[373568916,1753048052790,-150.0,0.00018137,2]
[373568917,1753048052810,-362.50763995,0.00018172,2]
[373568928,1753048232446,-451.88,0.00017785,2]
[373568929,1753048232456,-175.70285509,0.00017922,2]
[373568930,1753048232467,-90.77714491,0.00017922,2]
[373568931,1753048232477,-266.48,0.00017932,2]
[373568932,1753048232490,-884.16,0.00017938,2]
[373568933,1753048232499,-266.48,0.00017941,2]
[373568934,1753048232508,-266.48,0.00017951,2]
[373568935,1753048232518,-266.48,0.0001796,2]
[373568936,1753048232530,-266.48,0.0001797,2]
[373568937,1753048232541,-266.48,0.00017979,2]
[373568938,1753048232551,-266.48,0.00017988,2]
[373568939,1753048232563,-266.48,0.00017998,2]
[373568940,1753048232575,-147.2129196,0.00018007,2]
[373568941,1753048232587,-119.2670804,0.00018007,2]
[373568942,1753048232597,-266.48,0.00018017,2]
[373568943,1753048232607,-266.48,0.00018026,2]
[373568944,1753048232616,-249.83720592,0.00018036,2]
[373568945,1753048232627,-16.64279408,0.00018036,2]
[373568946,1753048232638,-266.48,0.00018045,2]
[373568947,1753048232648,-266.48,0.00018054,2]
[373568948,1753048232660,-266.48,0.00018064,2]
[373568949,1753048232672,-266.48,0.00018073,2]
[373568950,1753048232682,-266.48,0.00018083,2]
[373568951,1753048232693,-266.48,0.00018092,2]
[373568952,1753048232702,-266.48,0.00018101,2]
[373568954,1753048232712,-144.49236005,0.00018172,2]
[373568955,1753048232721,-147.9133617,0.00018208,2]
[373568956,1753048232735,-2.0866383,0.00018208,2]
[373568957,1753048232743,-150.0,0.00018208,2]
[373568958,1753048232753,-300.0,0.00018263,2]
[373568960,1753048232763,-976.36736037,0.00018263,2]
[373568962,1753048232774,-223.63263963,0.00018263,2]
[373568963,1753048232783,-150.0,0.00018263,2]
[373568964,1753048232793,-150.0,0.00018313,2]
[373568965,1753048232805,-309.31,0.00018329,2]
[373568966,1753048232819,-143.80104559,0.00018395,2]
[373568968,1753048232831,-6.19895441,0.00018395,2]
[373568970,1753048232842,-171.36,0.00018397,2]
[373568972,1753048232851,-150.0,0.00018401,2]
[373568974,1753048232861,-150.0,0.00018401,2]
[373568976,1753048232871,-150.0,0.00018472,2]
[373568978,1753048232880,-150.0,0.00018476,2]
[373568980,1753048232890,-150.0,0.00018489,2]
[373568981,1753048232899,-387.45032041,0.00018514,2]
[373568982,1753048232911,-1478.87291427,0.00018514,2]
[373568984,1753048232922,-1645.97670512,0.00018514,2]
[373568986,1753048232933,-1244.58027586,0.00018514,2]
[373568997,1753048233045,-2385.97578434,0.00018514,2]
[373568998,1753048233054,-231.28369723,0.00018514,2]
[373568999,1753048233063,-150.0,0.0001854,2]
[373569000,1753048233073,-150.0,0.00018552,2]
[373569001,1753048233082,-150.0,0.00018595,2]
[373569002,1753048233092,-150.0,0.00018595,2]
[373569003,1753048233101,-150.0,0.00018625,2]
[373569004,1753048233110,-524.09,0.00018626,2]
[373569005,1753048233120,-893.98,0.0001863,2]
[373569006,1753048233129,-150.0,0.00018666,2]
[373569007,1753048233139,-150.0,0.00018669,2]
[373569008,1753048233148,-451.88,0.00018674,2]
[373569009,1753048233158,-800.0,0.000187,6]
[373569010,1753048233168,-150.0,0.00018724,2]
[373569011,1753048233178,-150.0,0.00018774,2]
[373569012,1753048233187,-19.35605949,0.0001878,2]
[373569013,1753048233200,-357.64394051,0.0001878,2]
[373569014,1753048233209,-1600.0,0.000188,6]
[373569015,1753048233219,-150.0,0.00018816,2]
[373569016,1753048233229,-150.0,0.00018842,2]
[373569017,1753048233238,-168.19,0.00018865,2]
[373569018,1753048233248,-200.0,0.00018872,2]
[373569019,1753048233257,-150.0,0.00018886,2]
[373569020,1753048233267,-458.11405674,0.00018898,2]
[373569021,1753048233277,-200.0,0.000189,2]
[373569022,1753048233287,-2400.0,0.000189,6]
[373569023,1753048233296,-458.11405674,0.00018906,2]
[373569024,1753048233306,-150.0,0.00018923,2]
[373569025,1753048233317,-476.8747822,0.00018938,2]
[373569026,1753048233326,-160.0,0.00018938,2]
[373569027,1753048233336,-839.31074571,0.00018938,2]
[373569028,1753048233346,-210.86573235,0.00018938,2]
[373569029,1753048233356,-458.11405674,0.00018942,2]
[373569030,1753048233365,-200.0,0.00018956,2]
[373569031,1753048233375,-200.0,0.00018963,2]
[373569032,1753048233385,-200.0,0.00018973,2]
[373569033,1753048233395,-150.0,0.00018982,2]
[373569034,1753048233404,-150.0,0.00018982,2]
[373569035,1753048233413,-4616.28,0.0001899,2]
[373569036,1753048233423,-200.0,0.00018999,2]
[373569037,1753048233433,-150.0,0.00019007,2]
[373569038,1753048233442,-150.0,0.00019016,2]
[373569039,1753048233452,-309.31,0.00019016,2]
[373569040,1753048233462,-150.0,0.00019018,2]
[373569041,1753048233472,-500.0,0.00019045,2]
[373569042,1753048233486,-233.22562953,0.00019045,2]
[373569043,1753048233495,-160.0,0.00019045,2]
[373569044,1753048233504,-401.19111454,0.00019045,2]
[373569045,1753048233514,-151.0,0.00019045,2]
[373569046,1753048233523,-151.0,0.00019045,2]
[373569047,1753048233532,-151.0,0.00019045,2]
[373569048,1753048233541,-151.0,0.00019045,2]
[373569049,1753048233550,-151.0,0.00019045,2]
[373569050,1753048233560,-174.70875773,0.00019045,2]
[373569051,1753048233570,-151.0,0.00019045,2]
[373569052,1753048233579,-151.0,0.00019045,2]
[373569053,1753048233588,-151.0,0.00019045,2]
[373569054,1753048233597,-151.0,0.00019045,2]
[373569055,1753048233606,-151.0,0.00019045,2]
[373569056,1753048233616,-151.0,0.00019045,2]
[373569057,1753048233625,-151.0,0.00019045,2]
[373569058,1753048233635,-151.0,0.00019045,2]
[373569059,1753048233644,-151.0,0.00019045,2]
[373569060,1753048233653,-151.0,0.00019045,2]
[373569061,1753048233663,-151.0,0.00019045,2]
[373569062,1753048233673,-1000.0,0.00019057,2]
[373569063,1753048233682,-8371.5398,0.00019057,2]
[373569064,1753048233692,-7407.141672,0.00019062,2]
[373569065,1753048233701,-150.0,0.00019072,2]
[373569066,1753048233711,-547.95647297,0.00019078,2]
[373569067,1753048233720,-4664.95224328,0.00019078,2]
[373569068,1753048233730,-152.70618502,0.00019078,2]
[373569069,1753048233739,-2696.65133212,0.00019078,2]
[373569070,1753048233749,-1000.0,0.00019078,2]
[373569071,1753048233758,-5000.0,0.00019078,2]
[373569072,1753048233768,-2500.0,0.00019078,2]
[373569073,1753048233777,-2676.8815,0.00019078,2]
[373569074,1753048233786,-274.1072,0.00019078,2]
[373569075,1753048233796,-3235.0,0.00019091,2]
[373569076,1753048233805,-150.0,0.00019093,2]
[373569077,1753048233814,-152.70618487,0.00019095,2]
[373569078,1753048233823,-122.38560527,0.00019097,2]
[373569079,1753048233835,-220.61439473,0.00019097,2]
[373569080,1753048233844,-853.85325435,0.000191,2]
[373569081,1753048233857,-1119.01910016,0.000191,2]
[373569082,1753048233868,-1489.33764549,0.000191,2]
[373569083,1753048233878,-343.0,0.00019107,2]
[373569084,1753048233888,-152.70618487,0.00019113,2]
[373569085,1753048233905,-152.70618487,0.0001913,2]
[373569086,1753048233917,-152.70618487,0.00019147,2]
[373569087,1753048233927,-2071.97199001,0.00019151,2]
[373569088,1753048233949,-41.55580999,0.00019151,2]
[373569089,1753048233958,-628.88293609,0.00019151,2]
[373569090,1753048233970,-2067.76839596,0.00019151,2]
[373569091,1753048233979,-940.05017408,0.00019157,2]
[373569092,1753048233990,-3724.90206918,0.00019157,2]
[373569093,1753048234000,-152.70618487,0.00019164,2]
[373569094,1753048234009,-375.01,0.00019168,3]
[373569095,1753048234019,-183.92,0.00019168,2]
[373569096,1753048234028,-1268.34,0.00019168,2]
[373569097,1753048234038,-1238.70100349,0.00019168,2]
[373569098,1753048234047,-500.0,0.00019173,2]
[373569099,1753048234056,-1140.46226451,0.00019177,5]
[373569100,1753048234066,-593.32486063,0.00019177,2]
[373569101,1753048234075,-206.87142205,0.00019177,2]
[373569102,1753048234084,-480.0,0.00019178,2]
[373569103,1753048234094,-480.0,0.00019178,2]
[373569104,1753048234104,-460.0,0.00019178,2]
[373569105,1753048234113,-480.0,0.00019178,2]
[373569106,1753048234123,-480.0,0.00019178,2]
[373569107,1753048234133,-500.0,0.00019178,2]
[373569108,1753048234144,-500.0,0.00019178,2]
[373569109,1753048234154,-500.0,0.00019178,2]
[373569110,1753048234164,-500.0,0.00019178,2]
[373569111,1753048234173,-451.46498665,0.00019178,2]
[373569112,1753048234200,-48.53501335,0.00019178,2]
[373569113,1753048234209,-500.0,0.00019178,2]
[373569114,1753048234218,-500.0,0.00019178,2]
[373569115,1753048234228,-254.6891888,0.00019178,2]
[373569116,1753048234237,-480.0,0.00019178,2]
[373569117,1753048234247,-480.0,0.00019178,2]
[373569118,1753048234256,-460.96681457,0.00019178,2]
[373569119,1753048234266,-480.0,0.00019178,2]
[373569120,1753048234275,-480.0,0.00019178,2]
[373569121,1753048234284,-47.11520734,0.00019178,2]
[373569177,1753048238337,-358.08190507,0.00019178,2]
[373569180,1753048238347,-480.0,0.00019178,2]
[373569183,1753048238357,-480.0,0.00019178,2]
[373569185,1753048238367,-460.0,0.00019178,2]
[373569187,1753048238376,-460.0,0.00019178,2]
[373569189,1753048238385,-480.0,0.00019178,2]
[373569191,1753048238395,-157.79579172,0.00019178,2]
[373569356,1753048240364,-686.37605632,0.00019078,2]
[373569403,1753048240804,-3290.40854368,0.00019078,2]
[373569405,1753048240814,-322.20420828,0.00019178,2]
[373569407,1753048240823,-480.0,0.00019178,2]
[373569409,1753048240833,-480.0,0.00019178,2]
[373569411,1753048240842,-480.0,0.00019178,2]
[373569413,1753048240851,-500.0,0.00019178,2]
[373569415,1753048240860,-480.0,0.00019178,2]
[373569417,1753048240869,-480.0,0.00019178,2]
[373569419,1753048240879,-463.31607453,0.00019178,2]
[373569421,1753048240889,-480.0,0.00019178,2]
[373569423,1753048240898,-480.0,0.00019178,2]
[373569425,1753048240907,-480.0,0.00019178,2]
[373569427,1753048240916,-480.0,0.00019178,2]
[373569429,1753048240926,-480.0,0.00019178,2]
[373569431,1753048240935,-480.0,0.00019178,2]
[373569432,1753048240944,-480.0,0.00019178,2]
[373569433,1753048240954,-480.0,0.00019178,2]
[373569434,1753048240963,-480.0,0.00019178,2]
[373569435,1753048240972,-480.0,0.00019178,2]
[373569436,1753048240982,-480.0,0.00019178,2]
[373569437,1753048240991,-480.0,0.00019178,2]
[373569438,1753048241000,-480.0,0.00019178,2]
[373569439,1753048241009,-480.0,0.00019178,2]
[373569440,1753048241019,-480.0,0.00019178,2]
[373569441,1753048241028,-480.0,0.00019178,2]
[373569442,1753048241038,-480.0,0.00019178,2]
[373569443,1753048241047,-480.0,0.00019178,2]
[373569444,1753048241057,-480.0,0.00019178,2]
[373569445,1753048241066,-460.0,0.00019178,2]
[373569446,1753048241075,-480.0,0.00019178,2]
[373569448,1753048241086,-480.0,0.00019178,2]
[373569450,1753048241095,-533.64,0.00019178,2]
[373569452,1753048241104,-480.0,0.00019178,2]
[373569454,1753048241113,-480.0,0.00019178,2]
[373569456,1753048241122,-462.60417226,0.00019178,2]
[373569458,1753048241132,-480.0,0.00019178,2]
[373569460,1753048241141,-480.0,0.00019178,2]
[373569462,1753048241151,-480.0,0.00019178,2]
[373569464,1753048241160,-480.0,0.00019178,2]
[373569466,1753048241170,-480.0,0.00019178,2]
[373569468,1753048241179,-480.0,0.00019178,2]
[373569470,1753048241188,-480.0,0.00019178,2]
[373569472,1753048241198,-480.0,0.00019178,2]
[373569474,1753048241207,-480.0,0.00019178,2]
[373569475,1753048241216,-480.0,0.00019178,2]
[373569477,1753048241225,-480.0,0.00019178,2]
[373569479,1753048241234,-480.0,0.00019178,2]
[373569481,1753048241243,-460.0,0.00019178,2]
[373569483,1753048241253,-480.0,0.00019178,2]
[373569485,1753048241262,-480.0,0.00019178,2]
[373569487,1753048241271,-480.0,0.00019178,2]
[373569489,1753048241280,-480.0,0.00019178,2]
[373569491,1753048241291,-460.48448806,0.00019178,2]
[373569493,1753048241301,-480.0,0.00019178,2]
[373569496,1753048241311,-460.0,0.00019178,2]
[373569498,1753048241321,-480.0,0.00019178,2]
[373569499,1753048241330,-500.0,0.00019178,2]
[373569501,1753048241339,-202.70253729,0.00019178,2]
[373569503,1753048241349,-480.0,0.00019178,2]
[373569505,1753048241358,-480.0,0.00019178,2]
[373569507,1753048241368,-480.0,0.00019178,2]
[373569510,1753048241378,-480.0,0.00019178,2]
[373569511,1753048241388,-480.0,0.00019178,2]
[373569514,1753048241397,-480.0,0.00019178,2]
[373569515,1753048241406,-480.0,0.00019178,2]
[373569517,1753048241415,-480.0,0.00019178,2]
[373569520,1753048241425,-470.09507516,0.00019178,2]
[373569522,1753048241434,-582.57,0.00019178,2]
[373569524,1753048241444,-460.0,0.00019178,2]
[373569526,1753048241453,-463.22420949,0.00019178,2]
[373569527,1753048241463,-480.0,0.00019178,2]
[373569530,1753048241472,-480.0,0.00019178,2]
[373569531,1753048241484,-480.0,0.00019178,2]
[373569534,1753048241496,-461.74879834,0.00019178,2]
[373569536,1753048241505,-480.0,0.00019178,2]
[373569538,1753048241515,-480.0,0.00019178,2]
[373569540,1753048241524,-480.0,0.00019178,2]
[373569542,1753048241534,-462.99934235,0.00019178,2]
[373569544,1753048241543,-460.0,0.00019178,2]
[373569545,1753048241552,-480.0,0.00019178,2]
[373569547,1753048241563,-480.0,0.00019178,2]
[373569549,1753048241573,-461.80476328,0.00019178,2]
[373569552,1753048241583,-480.0,0.00019178,2]
[373569553,1753048241594,-480.0,0.00019178,2]
[373569555,1753048241604,-480.0,0.00019178,2]
[373569558,1753048241613,-500.0,0.00019178,2]
[373569559,1753048241623,-333.76637022,0.00019178,2]
[373569561,1753048241632,-480.0,0.00019178,2]
[373569563,1753048241642,-480.0,0.00019178,2]
[373569566,1753048241651,-480.0,0.00019178,2]
[373569567,1753048241660,-480.0,0.00019178,2]
[373569569,1753048241670,-480.0,0.00019178,2]
[373569571,1753048241679,-480.0,0.00019178,2]
[373569573,1753048241688,-480.0,0.00019178,2]
[373569575,1753048241698,-480.0,0.00019178,2]
[373569577,1753048241707,-480.0,0.00019178,2]
[373569579,1753048241716,-480.0,0.00019178,2]
[373569581,1753048241726,-480.0,0.00019178,2]
[373569583,1753048241735,-480.0,0.00019178,2]
[373569585,1753048241744,-480.0,0.00019178,2]
[373569587,1753048241753,-480.0,0.00019178,2]
[373569589,1753048241763,-237.32760656,0.00019178,2]
[373569591,1753048241772,-480.0,0.00019178,2]
[373569593,1753048241781,-480.0,0.00019178,2]
[373569595,1753048241791,-480.0,0.00019178,2]
[373569597,1753048241800,-480.0,0.00019178,2]
[373569599,1753048241809,-480.0,0.00019178,2]
[373569601,1753048241818,-480.0,0.00019178,2]
[373569603,1753048241829,-462.54513176,0.00019178,2]
[373569605,1753048241838,-480.0,0.00019178,2]
[373569607,1753048241847,-480.0,0.00019178,2]
[373569609,1753048241856,-460.0,0.00019178,2]
[373569611,1753048241866,-500.0,0.00019178,2]
[373569613,1753048241876,-480.0,0.00019178,2]
[373569615,1753048241885,-480.0,0.00019178,2]
[373569617,1753048241895,-480.0,0.00019178,2]
[373569619,1753048241904,-480.0,0.00019178,2]
[373569621,1753048241914,-480.0,0.00019178,2]
[373569623,1753048241923,-480.0,0.00019178,2]
[373569625,1753048241932,-625.01388373,0.00019178,2]
[373569627,1753048241942,-438.55758241,0.00019178,2]
[373569629,1753048241951,-460.0,0.00019178,2]
[373569631,1753048241961,-480.0,0.00019178,2]
[373569633,1753048241970,-464.09426793,0.00019178,2]
[373569635,1753048241980,-480.0,0.00019178,2]
[373569637,1753048241989,-480.0,0.00019178,2]
[373569639,1753048241998,-576.15,0.00019178,2]